[Event "Prague Festival Masters 2024"]
[Site "Prague"]
[Date "2024.03.01"]
[Round "4.1"]
[White "Vidit, Santosh Gujrathi"]
[Black "Bartel, Mateusz"]
[Result "1/2-1/2"]
[ECO "C45"]
[WhiteElo "2742"]
[BlackElo "2657"]
[Annotator "TA"]
[PlyCount "81"]
[EventDate "2024.02.22"]
[EventType "tourn"]
[EventCountry "CZE"]
[SourceTitle "playchess.com"]
[Source "ChessBase"]
[SourceQuality "1"]
[TimeControl "40/5400+30:1800+30"]

{[%evp 9,81,13,16,10,9,8,15,9,12,23,32,45,42,18,23,51,50,0,22,22,50,3,16,0,53,36,45,21,33,-12,25,18,21,0,25,11,12,14,2,22,18,-22,0,0,0,0,33,29,30,33,35,38,47,10,8,8,6,0,14,12,56,0,0,0,0,0,0,0,0,0,0,0,0,0]} 1. e4 {[%emt 0:00:53]} e5 {[%emt 0:00:04]} 2. Nf3 {[%emt 0:00:15]} Nc6 {[%emt 0:00:05]} 3. d4 {[%emt 0:00:11]} exd4 {[%emt 0:00:06]} 4. Nxd4 {[%emt 0:00:06]} Qf6 {[%emt 0:00:06]} 5. Nf3 {[%emt 0:00:17]} Bb4+ {[%emt 0:00:21]} 6. c3 {[%emt 0:00:15]} Bc5 {[%emt 0:00:04]} 7. Be2 {[%emt 0:00:31]} Nge7 {[%emt 0:04:25]} 8. O-O {[%emt 0:04:10]} h6 {[%emt 0:00:06]} 9. Qc2 {[%emt 0:00:52]} d6 {[%emt 0:00:06]} 10. b4 {[%emt 0:02:05]} Bb6 {[%emt 0:00:03]} 11. Bb2 {[%emt 0:10:12]} Qg6 {[%emt 0:11:55]} 12. Nbd2 {[%emt 0:03:03]} O-O {[%emt 0:03:18]} 13. Kh1 {[%emt 0:20:23]} (13. a4 $14 a6 14. Nc4) 13... a6 {[%emt 0:15:19]} 14. a3 {[%emt 0:04:35]} Qh5 {[%emt 0:12:35]} 15. Ng1 {[%emt 0:05:44]} (15. Nc4 $14 {is more appropriate.}) 15... Qg6 $11 {[%emt 0:01:33]} 16. Ngf3 {[%emt 0:22:13]} Qh5 {[%emt 0:00:34]} 17. c4 {[%emt 0:00:39]} Bg4 {[%emt 0:00:06]} 18. Qc3 {[%emt 0:02:27][%csl Gb2][%cal Rc3g7] [#]} f6 {[%emt 0:01:33]} 19. Nb3 {[%emt 0:00:53]} (19. Rae1 $5) 19... Ne5 {[%emt 0:05:08]} 20. c5 {[%emt 0:00:56]} Ba7 {[%emt 0:00:55]} 21. Rae1 {[%emt 0:02:00]} Rad8 {[%emt 0:07:43]} 22. Nfd4 {[%emt 0:03:10] [#] f3 would now be deadly.} dxc5 {[%emt 0:05:13]} 23. bxc5 {[%emt 0:00:06] Hoping for f3.} Bxe2 {[%emt 0:00:43]} 24. Rxe2 {[%emt 0:00:06]} N7c6 {[%emt 0:00:41] aiming for ...Nxd4.} 25. f3 {[%emt 0:02:09][%cal Bf2f3,Bf3f4][%mdl 32]} Qf7 {[%emt 0:00:58] Inhibits Ne6.} 26. f4 {[%emt 0:01:49]} Nxd4 {[%emt 0:08:54]} 27. Nxd4 {[%emt 0:00:02]} Nc4 {[%emt 0:00:10]} 28. f5 {[%emt 0:00:45] Strongly threatening Ne6.} Rfe8 {[%emt 0:01:45]} 29. Ne6 {[%emt 0:02:14]} Rxe6 $1 {[%emt 0:00:03]} 30. fxe6 {[%emt 0:00:10]} Qxe6 {[%emt 0:00:02]} 31. Rc2 {[%emt 0:04:55]} Nxb2 {[%emt 0:05:39]} 32. Rxb2 {[%emt 0:00:49]} Qxe4 {[%emt 0:00:09]} 33. Qb3+ {[%emt 0:01:25]} Kh8 {[%emt 0:01:04]} 34. Qxb7 {[%emt 0:00:39]} Qd3 {[%emt 0:06:21]} 35. Rbf2 {[%emt 0:01:29]} ({White should try} 35. Re1 $1 $14 Bxc5 36. Qxc7 Bxa3 37. Rb3 Qxb3 38. Qxd8+ Kh7 39. Qa5) 35... Bxc5 {[%emt 0:00:43] The position is equal.} 36. Rf3 {[%emt 0:00:08]} Qd6 {[%emt 0:01:29]} 37. a4 {[%emt 0:00:45]} Bd4 {[%emt 0:02:51]} 38. Rd3 {[%emt 0:01:35]} c5 {[%emt 0:00:24]} 39. Rg3 {[%emt 0:00:49]} Rd7 {[%emt 0:03:19]} 40. Qa8+ {[%emt 0:00:16]} Rd8 {[%emt 0:00:07]} 41. Qb7 {[%emt 0:30:04] Weighted Error Value: White=0.14 (very precise) /Black=0.08 (flawless) .  Mistake:       	White=3     	---        Inaccurate:     	White=3     	Black=4      OK:         	White=16    	Black=14     Best:        	---       	Black=4      Strong:       	---       	Black=1} 1/2-1/2

[Event "Prague Festival Masters 2024"]
[Site "Prague"]
[Date "2024.03.01"]
[Round "4.2"]
[White "Nguyen, Thai Dai Van"]
[Black "Praggnanandhaa R"]
[Result "1/2-1/2"]
[ECO "D38"]
[WhiteElo "2632"]
[BlackElo "2743"]
[Annotator "TA"]
[PlyCount "80"]
[EventDate "2024.02.22"]
[EventType "tourn"]
[EventCountry "CZE"]
[SourceTitle "playchess.com"]
[Source "ChessBase"]
[SourceQuality "1"]
[TimeControl "40/5400+30:1800+30"]

{[%evp 14,80,29,29,25,12,23,7,22,28,32,36,35,29,50,68,38,42,56,46,31,34,44,33,31,25,23,29,26,19,19,27,26,6,12,15,56,68,58,64,56,57,78,77,110,59,64,25,28,32,39,28,27,0,31,17,27,26,73,73,80,85,85,69,69,70,70,71,72]} 1. d4 {[%emt 0:00:08]} Nf6 {[%emt 0:00:48]} 2. c4 {[%emt 0:00:09]} e6 {[%emt 0:00:17]} 3. Nc3 {[%emt 0:00:11]} Bb4 {[%emt 0:00:29]} 4. Qc2 {[%emt 0:00:10]} d6 {[%emt 0:01:36]} 5. e3 {[%emt 0:00:10]} O-O {[%emt 0:00:09]} 6. Bd3 {[%emt 0:00:03]} d5 {[%emt 0:01:05]} 7. Nf3 {[%emt 0:18:52]} dxc4 {[%emt 0:02:28]} 8. Bxc4 {[%emt 0:00:02]} b6 {[%emt 0:00:06]} 9. O-O {[%emt 0:06:09]} Bb7 {[%emt 0:00:40]} 10. Bd3 {[%emt 0:09:41]} c5 {[%emt 0:05:12] The position is equal.} 11. Ne4 {[%emt 0:07:21]} Nxe4 {[%emt 0:15:08]} 12. Bxe4 {[%emt 0:00:10]} Bxe4 {[%emt 0:00:05]} 13. Qxe4 {[%emt 0:00:07]} Nd7 {[%emt 0:00:11]} 14. a3 {[%emt 0:00:45]} Ba5 {[%emt 0:00:23]} 15. Qc2 {[%emt 0:13:58]} Rc8 {[%emt 0:16:19]} 16. dxc5 {[%emt 0:01:32]} bxc5 {[%emt 0:01:04]} 17. Rd1 {[%emt 0:00:07]} Qc7 {[%emt 0:03:24] Repels Ne5} 18. b3 {[%emt 0:00:42]} h6 {[%emt 0:07:15] Inhibits Ng5.} 19. Bb2 {[%emt 0:00:26]} Qb7 {[%emt 0:00:08]} 20. Rac1 {[%emt 0:12:35][%cal Ob3b4]} Bd8 {[%emt 0:03:37]} 21. Ne5 {[%emt 0:05:57]} Nxe5 {[%emt 0:01:53]} 22. Bxe5 {[%emt 0:00:03]} Be7 {[%emt 0:00:08]} 23. Qc3 {[%emt 0:01:04]} f6 $1 {[%emt 0:02:28]} 24. Bd6 {[%emt 0:00:56]} Rfd8 {[%emt 0:01:10]} 25. Bxe7 {[%emt 0:00:27]} Rxd1+ {[%emt 0:04:01]} 26. Rxd1 {[%emt 0:00:12]} Qxe7 $14 {[%emt 0:00:02][%mdl 4096] Endgame. KQR-KQR} 27. h3 {[%emt 0:00:51]} Rb8 {[%emt 0:01:16]} 28. Rd3 {[%emt 0:01:31] White is more active.} Rb7 {[%emt 0:03:59]} 29. Qc4 {[%emt 0:02:07]} (29. Qc2 $16) 29... f5 {[%emt 0:03:46]} 30. e4 {[%emt 0:02:14]} fxe4 {[%emt 0:00:40]} 31. Qxe4 {[%emt 0:00:39]} Rd7 $1 {[%emt 0:00:12]} 32. Qa8+ {[%emt 0:00:07]} Kh7 {[%emt 0:00:07]} 33. Qe4+ {[%emt 0:00:08]} Kg8 {[%emt 0:00:12]} 34. Re3 {[%emt 0:09:46]} Rd1+ {[%emt 0:05:18]} 35. Kh2 {[%emt 0:00:26]} Qd6+ {[%emt 0:00:07]} (35... Rd2 $11) 36. g3 $16 {[%emt 0:00:16]} Qd5 {[%emt 0:00:07]} 37. Qxe6+ {[%emt 0:01:38]} Qxe6 {[%emt 0:00:02]} 38. Rxe6 {[%emt 0:00:09]} Ra1 {[%emt 0:00:12]} 39. a4 {[%emt 0:04:45]} c4 {[%emt 0:00:34]} 40. bxc4 {[%emt 0:00:20]} Rxa4 {[%emt 0:00:05] Weighted Error Value: White=0.06 (flawless) /Black=0.07 (flawless) .  Mistake:       	White=1     	Black=1      Inaccurate:     	White=1     	Black=2      OK:         	White=13    	Black=15     Best:        	White=2     	Black=1      Strong:       	---       	Black=2} 1/2-1/2

[Event "Prague Festival Masters 2024"]
[Site "Prague"]
[Date "2024.03.01"]
[Round "4.3"]
[White "Navara, David"]
[Black "Maghsoodloo, Parham"]
[Result "1/2-1/2"]
[ECO "D24"]
[WhiteElo "2679"]
[BlackElo "2740"]
[Annotator "TA"]
[PlyCount "114"]
[EventDate "2024.02.22"]
[EventType "tourn"]
[EventCountry "CZE"]
[SourceTitle "playchess.com"]
[Source "ChessBase"]
[SourceQuality "1"]
[TimeControl "40/5400+30:1800+30"]

{[%evp 31,114,76,73,66,62,39,91,90,89,66,68,60,55,57,79,58,56,53,58,57,76,75,57,63,67,61,91,98,96,93,99,92,114,106,107,69,77,38,54,56,73,73,75,0,59,14,21,14,20,19,50,45,56,56,52,54,55,53,52,9,9,9,9,0,0,0,0,0,0,0,0,0,0,0,0,0,0,0,0,0,0,0,0,0,0]} 1. d4 {[%emt 0:00:02]} Nf6 {[%emt 0:00:07]} 2. c4 {[%emt 0:00:05]} e6 {[%emt 0:00:05]} 3. Nf3 {[%emt 0:00:03]} d5 {[%emt 0:00:05]} 4. Nc3 {[%emt 0:00:05]} dxc4 {[%emt 0:00:03]} 5. e4 {[%emt 0:00:08]} b5 {[%emt 0:00:04]} 6. e5 {[%emt 0:00:09] D24: Queen's Gambit Accepted: 3 Nf3 Nf6 4 Nc3.} Nd5 {[%emt 0:00:04]} 7. Nxb5 {[%emt 0:00:07]} Nb6 {[%emt 0:00:03]} 8. Be2 {[%emt 0:00:18]} Nc6 {[%emt 0:00:05]} 9. O-O {[%emt 0:00:30]} Be7 {[%emt 0:00:23]} 10. Qd2 {[%emt 0:03:58]} Bb7 {[%emt 0:12:42]} 11. Rd1 {[%emt 0:01:31]} Rb8 {[%emt 0:08:23]} 12. Qf4 {[%emt 0:17:37]} O-O {[%emt 0:00:58]} 13. Nc3 {[%emt 0:01:00]} Nb4 {[%emt 0:01:26]} 14. Qg4 {[%emt 0:01:00]} Kh8 {[%emt 0:00:10]} 15. Ng5 {[%emt 0:03:24]} Qe8 {[%emt 0:24:23]} 16. Qh5 {[%emt 0:01:47]} Bxg5 {[%emt 0:02:28]} 17. Bxg5 {[%emt 0:00:14]} f5 {[%emt 0:03:59]} 18. exf6 {[%emt 0:00:42]} gxf6 {[%emt 0:05:49]} (18... Qxh5 $1 $14 19. Bxh5 (19. fxg7+ Kxg7 20. Bxh5 Rf5 $11) 19... gxf6) 19. Qxe8 $16 {[%emt 0:01:45]} Rbxe8 {[%emt 0:00:07]} 20. Bf4 {[%emt 0:03:20]} Re7 $146 {[%emt 0:03:55]} ({Predecessor:} 20... Rc8 21. Rac1 Rg8 22. g3 N4d5 23. Bd2 Nxc3 24. bxc3 Bd5 25. Rb1 c5 26. Be3 Na4 {1-0 Andreikin,D (2729)-Maghsoodloo,P (2701) Titled Tuesday intern op 12th Jul Early blitz 2022 (10)}) 21. Bg3 {[%emt 0:06:33]} Rd8 {[%emt 0:08:35]} 22. Rac1 {[%emt 0:03:21]} Kg7 {[%emt 0:02:10]} 23. Nb5 {[%emt 0:08:29]} Rdd7 {[%emt 0:03:06]} ({Much worse is} 23... Nxa2 24. Ra1 Bc6 25. Bxc7 $16 (25. Nxc7 Nb4 $16)) 24. Bxc4 {[%emt 0:03:09]} Ba6 {[%emt 0:00:57]} 25. Bf1 {[%emt 0:01:27]} Nxa2 {[%emt 0:00:37]} 26. Rxc7 {[%emt 0:04:56]} Bxb5 {[%emt 0:04:23]} 27. Rxd7 {[%emt 0:00:13]} Bxd7 {[%emt 0:00:05]} 28. Ra1 {[%emt 0:00:14]} Bc6 {[%emt 0:12:41]} 29. Rxa2 {[%emt 0:00:17]} Bd5 {[%emt 0:00:04]} 30. Ra1 {[%emt 0:03:46]} Nc4 {[%emt 0:00:12]} 31. b4 {[%emt 0:02:58]} Rb7 {[%emt 0:03:32]} 32. Bd3 {[%emt 0:01:11]} Nd2 {[%emt 0:03:01]} 33. f3 {[%emt 0:12:55]} Nb3 {[%emt 0:01:17]} 34. Ra6 {[%emt 0:00:07]} Nxd4 {[%emt 0:00:41]} 35. Bd6 {[%emt 0:01:27]} e5 {[%emt 0:00:35]} 36. Bc5 {[%emt 0:02:14]} Nb3 {[%emt 0:00:43]} 37. Bd6 {[%emt 0:09:39]} (37. Rxa7 $2 {loses.} Nxc5 38. Rxb7+ Nxb7 $19) 37... Nd4 {[%emt 0:00:07]} 38. Kf2 {[%emt 0:00:05]} Nc6 $1 {[%emt 0:00:37]} 39. b5 {[%emt 0:00:50]} Nd4 {[%emt 0:00:01]} 40. Ra5 {[%emt 0:00:27]} Nb3 {[%emt 0:01:00]} 41. Ra4 {[%emt 0:30:34]} Nd4 {[%emt 0:07:39]} 42. f4 {[%emt 0:00:00]} Nxb5 {[%emt 0:00:08]} 43. fxe5 {[%emt 0:00:00]} Nxd6 {[%emt 0:02:47]} 44. exd6 {[%emt 0:00:00]} Kf7 {[%emt 0:02:12]} 45. Bxh7 {[%emt 0:00:00]} Ke6 {[%emt 0:00:37]} 46. Bg8+ {[%emt 0:00:00]} Kxd6 {[%emt 0:00:05]} 47. Rd4 {[%emt 0:00:00]} Rb5 {[%emt 0:00:05]} 48. h4 {[%emt 0:00:00]} Ke5 {[%emt 0:00:04]} 49. Rxd5+ {[%emt 0:00:00]} Rxd5 {[%emt 0:00:03]} 50. Bxd5 {[%emt 0:00:00]} Kxd5 {[%emt 0:00:03]} 51. Ke3 {[%emt 0:00:00]} (51. h5 $5 Ke6 $8 52. g4 $11) 51... Ke5 {[%emt 0:01:21]} (51... f5 $5) 52. Kd3 {[%emt 0:00:00]} f5 {[%emt 0:00:56]} 53. g3 $1 {[%emt 0:00:00]} a5 {[%emt 0:00:21]} 54. Kc4 {[%emt 0:00:00]} f4 {[%emt 0:00:03]} 55. gxf4+ {[%emt 0:00:00]} Kxf4 {[%emt 0:00:04]} 56. Kb5 {[%emt 0:00:00]} Kg4 {[%emt 0:00:03]} 57. Kxa5 {[%emt 0:00:00]} Kxh4 {[%emt 0:00:04]} 1/2-1/2

[Event "Prague Festival Masters 2024"]
[Site "Prague"]
[Date "2024.03.01"]
[Round "4.4"]
[White "Rapport, Richard"]
[Black "Keymer, Vincent"]
[Result "1/2-1/2"]
[ECO "C68"]
[WhiteElo "2717"]
[BlackElo "2743"]
[Annotator "TA"]
[PlyCount "123"]
[EventDate "2024.02.22"]
[EventType "tourn"]
[EventCountry "CZE"]
[SourceTitle "playchess.com"]
[Source "ChessBase"]
[SourceQuality "1"]
[TimeControl "40/5400+30:1800+30"]

{[%evp 15,123,-28,0,0,0,-5,0,0,15,8,21,15,35,44,41,27,29,17,10,12,34,35,54,42,51,53,56,47,52,57,61,54,64,0,35,0,60,42,42,43,43,45,42,43,39,0,50,43,50,34,34,34,34,34,86,86,86,86,86,86,154,154,158,158,158,158,158,158,158,158,158,158,158,158,158,0,158,158,143,0,86,86,86,86,86,86,86,0,86,0,86,86,86,86,86,86,86,86,86,58,58,58,58,58,58,58,58,58,58,0]} 1. e4 {[%emt 0:00:29]} e5 {[%emt 0:00:04]} 2. Nf3 {[%emt 0:00:10]} Nc6 {[%emt 0:00:02]} 3. Bb5 {[%emt 0:00:46]} a6 {[%emt 0:00:05]} 4. Bxc6 {[%emt 0:00:11]} dxc6 {[%emt 0:00:05]} 5. O-O {[%emt 0:00:07]} Bg4 {[%emt 0:01:59]} 6. h3 {[%emt 0:00:48]} h5 {[%emt 0:00:04]} 7. d3 {[%emt 0:04:24]} Qf6 {[%emt 0:01:41]} 8. Nbd2 {[%emt 0:00:08] [#]} g5 $1 {[%emt 0:03:29]} 9. hxg4 {[%emt 0:01:21]} hxg4 {[%emt 0:00:06][%cal Of6h6] ( -> ...Qh6!)} 10. Re1 $1 {[%emt 0:00:04]} gxf3 {[%emt 0:26:07]} 11. Qxf3 {[%emt 0:01:03] The position is equal.} Qxf3 {[%emt 0:03:21]} 12. Nxf3 {[%emt 0:00:55]} f6 {[%emt 0:00:03]} 13. Be3 {[%emt 0:08:49]} c5 {[%emt 0:01:18]} 14. Nd2 {[%emt 0:13:31]} Bd6 {[%emt 0:05:32]} 15. a4 {[%emt 0:00:53]} Ne7 {[%emt 0:10:00]} 16. Nb3 {[%emt 0:09:35]} b6 {[%emt 0:00:27]} 17. a5 {[%emt 0:02:07]} Nc6 {[%emt 0:04:42]} 18. c3 {[%emt 0:01:30]} Kd7 {[%emt 0:08:24][%cal Be8d7,Bd7c8,Bc8b7][%mdl 32]} 19. g3 {[%emt 0:04:19]} Kc8 {[%emt 0:07:23]} 20. Kg2 {[%emt 0:01:01][%cal Bg1g2,Bg2f3,Bf3e2][%mdl 32]} Kb7 {[%emt 0:00:21]} 21. Rh1 {[%emt 0:05:50]} Rad8 {[%emt 0:01:23]} 22. Kf3 {[%emt 0:02:25]} Be7 {[%emt 0:00:43]} 23. Ke2 {[%emt 0:06:05]} Bd6 {[%emt 0:03:30]} 24. Kf3 {[%emt 0:13:44]} Be7 $1 {[%emt 0:01:26]} 25. Ke2 {[%emt 0:00:06]} Bd6 $1 {[%emt 0:00:20]} 26. g4 {[%emt 0:04:11]} Ne7 {[%emt 0:06:18][%cal Bc6e7,Be7g6,Bg6h4][%mdl 32]} 27. Rh5 {[%emt 0:01:36]} Ng6 {[%emt 0:01:19]} 28. axb6 {[%emt 0:01:30]} cxb6 {[%emt 0:00:05]} 29. Nd2 {[%emt 0:01:10]} a5 {[%emt 0:04:24]} 30. c4 {[%emt 0:04:13]} Bc7 {[%emt 0:02:00]} (30... Nf4+ $11 31. Bxf4 Rxh5 32. gxh5 exf4) 31. Rah1 $14 {[%emt 0:00:45]} Nh4 {[%emt 0:00:54]} 32. Rxh8 {[%emt 0:01:32]} Rxh8 {[%emt 0:00:04]} 33. Nb1 {[%emt 0:00:07]} Ng6 {[%emt 0:00:25]} 34. Rh5 {[%emt 0:02:04]} Kc6 {[%emt 0:02:28]} ({Black should try} 34... Bd6 $1 $14) 35. Nc3 $16 {[%emt 0:00:20]} Bd8 {[%emt 0:00:05]} 36. Nd5 {[%emt 0:01:08]} Kd7 {[%emt 0:03:27]} 37. Kd1 {[%emt 0:03:16] White is much more active.} Rxh5 {[%emt 0:03:06]} (37... Ke8 $142) 38. gxh5 {[%emt 0:00:04][%mdl 4096] Endgame. KBN-KBN} Nh8 {[%emt 0:00:02]} 39. Bd2 {[%emt 0:01:12]} Nf7 {[%emt 0:00:26] [#]} 40. Ne3 $1 {[%emt 0:00:07]} Be7 {[%emt 0:02:12]} 41. Kc2 {[%emt 0:13:56]} Nh6 {[%emt 0:04:03]} 42. Kb3 {[%emt 0:05:02]} Kc6 {[%emt 0:01:14]} 43. Nd5 {[%emt 0:00:24]} Bd8 {[%emt 0:00:32]} 44. Ka4 {[%emt 0:00:27]} Ng8 {[%emt 0:01:36]} 45. Kb3 {[%emt 0:09:34]} Nh6 $1 {[%emt 0:01:29]} 46. Kc2 {[%emt 0:02:36]} Kd7 {[%emt 0:05:01]} 47. Kd1 {[%emt 0:00:14]} (47. Bc3 $16) 47... Ke6 {[%emt 0:00:42]} (47... Nf7 $1 $11) 48. Ke2 {[%emt 0:00:11]} Ng8 {[%emt 0:06:39]} 49. Kf3 {[%emt 0:00:41]} Kf7 {[%emt 0:00:53]} 50. Ne3 {[%emt 0:00:49]} Be7 {[%emt 0:00:04]} 51. Nd5 {[%emt 0:05:46]} Bd8 {[%emt 0:00:04]} 52. Ne3 {[%emt 0:01:09]} Be7 $1 {[%emt 0:00:03]} 53. Nf5 {[%emt 0:00:06] Against Nh6} Bf8 {[%emt 0:00:04]} 54. b3 {[%emt 0:00:11]} Ke6 {[%emt 0:01:19]} 55. Bc1 {[%emt 0:00:04]} Kf7 {[%emt 0:00:47]} 56. Ba3 {[%emt 0:00:08]} Nh6 {[%emt 0:06:49]} 57. Nxh6+ {[%emt 0:01:50]} Bxh6 {[%emt 0:00:01] White is slightly better.} 58. Kg4 {[%emt 0:00:06]} Ke6 {[%emt 0:00:04]} 59. Bc1 {[%emt 0:00:14]} Bg7 {[%emt 0:00:34]} 60. Be3 {[%emt 0:01:58]} Bh6 {[%emt 0:00:33]} 61. Bd2 {[%emt 0:00:03]} Bf8 {[%emt 0:00:56]} 62. Bc1 {[%emt 0:01:51] Black defended with fortune.   Weighted Error Value: White=0.13 (very precise) /Black=0.08 (flawless) .  Mistake:       	White=2     	Black=4      Inaccurate:     	White=3     	---        OK:         	White=23    	Black=23     Best:        	White=1     	Black=4      Strong:       	White=2     	Black=4} (62. Bc3 $14) 1/2-1/2

[Event "Prague Festival Masters 2024"]
[Site "Prague"]
[Date "2024.03.01"]
[Round "4.5"]
[White "Abdusattorov, Nodirbek"]
[Black "Gukesh D"]
[Result "1/2-1/2"]
[ECO "E11"]
[WhiteElo "2727"]
[BlackElo "2725"]
[Annotator "TA"]
[PlyCount "78"]
[EventDate "2024.02.22"]
[EventType "tourn"]
[EventCountry "CZE"]
[SourceTitle "playchess.com"]
[Source "ChessBase"]
[SourceQuality "1"]
[TimeControl "40/5400+30:1800+30"]

{[%evp 15,78,0,0,0,0,0,10,0,8,0,25,31,29,21,25,10,56,47,44,38,40,44,45,44,40,33,52,37,47,64,50,50,43,0,0,0,9,0,22,15,15,15,24,15,15,15,15,15,15,15,15,15,23,0,0,0,0,0,0,0,0,0,0,0,0]} 1. d4 {[%emt 0:00:03]} Nf6 {[%emt 0:00:15]} 2. c4 {[%emt 0:00:24]} e6 {[%emt 0:00:13]} 3. Nf3 {[%emt 0:00:13]} d5 {[%emt 0:00:18]} 4. g3 {[%emt 0:00:07]} Bb4+ {[%emt 0:01:09]} 5. Bd2 {[%emt 0:00:09]} Be7 {[%emt 0:00:37]} 6. Bg2 {[%emt 0:00:08]} O-O {[%emt 0:00:09]} 7. O-O {[%emt 0:00:07]} c6 {[%emt 0:00:53]} 8. Qc2 {[%emt 0:00:15]} Nbd7 {[%emt 0:01:02]} 9. Rc1 {[%emt 0:00:37]} a5 {[%emt 0:09:19]} 10. a4 {[%emt 0:01:50]} Re8 {[%emt 0:06:48]} 11. Be1 {[%emt 0:18:56]} Bf8 {[%emt 0:06:31]} 12. Nbd2 {[%emt 0:01:01][%cal Bb1d2,Bd2f3,Bf3d4][%mdl 32]} e5 {[%emt 0:22:50]} 13. dxe5 {[%emt 0:01:56]} Nxe5 {[%emt 0:00:08]} 14. Nxe5 {[%emt 0:00:06]} Rxe5 {[%emt 0:00:04]} 15. cxd5 {[%emt 0:00:09]} cxd5 {[%emt 0:02:03]} (15... Nxd5 $11 {might be stronger.} 16. Nc4 Re6) 16. Nf3 {[%emt 0:03:50]} Re8 {[%emt 0:00:11]} 17. Nd4 {[%emt 0:04:24]} b6 {[%emt 0:05:58]} 18. e3 {[%emt 0:06:42]} Ba6 {[%emt 0:01:34] [#]} 19. b4 $1 {[%emt 0:07:37]} axb4 {[%emt 0:05:15]} 20. Qb2 {[%emt 0:01:29]} Ne4 {[%emt 0:01:52]} 21. Bxe4 {[%emt 0:01:05]} dxe4 {[%emt 0:01:59]} 22. Bxb4 {[%emt 0:00:20]} Bxb4 {[%emt 0:04:51]} 23. Qxb4 {[%emt 0:00:08]} Rc8 $1 {[%emt 0:01:14]} 24. Nf5 {[%emt 0:05:11]} Qf6 {[%emt 0:03:51]} 25. Nd4 {[%emt 0:04:55]} ({Don't go for} 25. Nd6 $2 Rc2 26. Rf1 (26. Nxe8 $2 Qxf2+ 27. Kh1 Qxh2#) (26. Nxe4 $2 Rxe4 27. Qe1 Rxc1 $19) 26... Bxf1 27. Rxf1 Re6 $19) 25... g6 {[%emt 0:02:36]} 26. Kg2 {[%emt 0:02:20]} (26. Rcb1 {simplifies} Rc4 27. Qd2 Rc5 28. Rb3) 26... Bd3 {[%emt 0:02:08] Repels Rcb1} (26... h5 $5) 27. Rc3 {[%emt 0:02:02]} Rxc3 {[%emt 0:03:56]} 28. Qxc3 {[%emt 0:00:02]} Ra8 {[%emt 0:00:33]} 29. h4 {[%emt 0:03:12]} h5 {[%emt 0:00:39]} 30. Rc1 {[%emt 0:00:55] And now Qb3 would win.} Ba6 $1 {[%emt 0:03:26]} ({Reject} 30... Rxa4 $6 31. Qc8+ Kh7 32. Rc6 $18) 31. Qb3 {[%emt 0:17:16]} Rc8 {[%emt 0:00:43] Prevents Rc6.} 32. Rxc8+ {[%emt 0:01:50]} Bxc8 $11 {[%emt 0:00:07][%mdl 4096] Endgame. KQB-KQN} 33. Qd5 {[%emt 0:00:24]} Qe7 {[%emt 0:04:40]} (33... Bf5 {simplifies} 34. Kg1 Kg7 35. Nxf5+ gxf5 36. Qd1 Kg6) 34. Nc6 {[%emt 0:02:54]} Qd7 {[%emt 0:02:31] The position is equal.} 35. Qc4 {[%emt 0:02:21] Active counter play!} (35. Qxe4 $2 {loses.} Bb7 36. f3 Bxc6 $19) 35... Qe6 {[%emt 0:00:50] Dodges Ne5} 36. Ne7+ {[%emt 0:02:37]} Qxe7 {[%emt 0:01:44]} 37. Qxc8+ {[%emt 0:00:03]} Kg7 {[%emt 0:00:10]} 38. Qc3+ {[%emt 0:00:41]} Kg8 {[%emt 0:02:47]} 39. Kf1 {[%emt 0:00:40]} Qe6 {[%emt 0:00:27] Weighted Error Value: White=0.05 (flawless) /Black=0.05 (flawless) .  Mistake:       	---       	Black=1      Inaccurate:     	White=1     	---        OK:         	White=10    	Black=11     Strong:       	---       	Black=2} 1/2-1/2